[Event "*** Titled Tuesday Blitz"]
[Site "Chess.com"]
[Date "2020.05.12"]
[Round "9"]
[White "ZverevLev"]
[Black "Pintacara"]
[Result "1-0"]
[WhiteElo "2130"]
[BlackElo "2289"]
[TimeControl "180+1"]
[EndTime "11:44:47 PDT"]
[Termination "ZverevLev won by checkmate"]

1. e4 {[%clk 0:03:00.9]} 1... c5 {[%clk 0:02:59.9]} 2. Nf3 {[%clk 0:03:00.6]}
2... e6 {[%clk 0:02:59.9]} 3. d4 {[%clk 0:03:00.7]} 3... cxd4 {[%clk 0:03:00.8]}
4. Nxd4 {[%clk 0:03:00.8]} 4... a6 {[%clk 0:03:00.9]} 5. Bd3 {[%clk 0:02:59.3]}
5... Bc5 {[%clk 0:02:59.5]} 6. Nb3 {[%clk 0:02:55.4]} 6... Ba7 {[%clk
0:02:59.8]} 7. Qg4 {[%clk 0:02:54]} 7... Nf6 {[%clk 0:02:59.5]} 8. Qxg7 {[%clk
0:02:52.9]} 8... Rg8 {[%clk 0:02:58.9]} 9. Qh6 {[%clk 0:02:53.2]} 9... Bxf2+
{[%clk 0:02:59.3]} 10. Kf1 {[%clk 0:02:51.6]} 10... Ba7 {[%clk 0:02:59.4]} 11.
e5 {[%clk 0:02:47.4]} 11... Nd5 {[%clk 0:01:17.9]} 12. Qxh7 {[%clk 0:02:44.6]}
12... Ne7 {[%clk 0:01:17.8]} 13. Nc3 {[%clk 0:02:37.7]} 13... d5 {[%clk
0:01:10.9]} 14. exd6 {[%clk 0:02:35.4]} 14... Qxd6 {[%clk 0:01:10.4]} 15. Ne4
{[%clk 0:02:35.2]} 15... Qb6 {[%clk 0:01:09.1]} 16. a4 {[%clk 0:02:24.5]} 16...
Rg6 {[%clk 0:01:00.1]} 17. a5 {[%clk 0:02:18]} 17... Qc6 {[%clk 0:00:54.6]} 18.
Bf4 {[%clk 0:02:12.5]} 18... Nd7 {[%clk 0:00:53.4]} 19. Nd6+ {[%clk 0:02:03.5]}
19... Kd8 {[%clk 0:00:46.5]} 20. Nxf7+ {[%clk 0:02:00.5]} 20... Ke8 {[%clk
0:00:43.8]} 21. Bxg6 {[%clk 0:01:52.4]} 21... Qc4+ {[%clk 0:00:43.5]} 22. Ke1
{[%clk 0:01:47.4]} 22... Qxf4 {[%clk 0:00:35.6]} 23. Qh8+ {[%clk 0:01:33]} 23...
Nf8 {[%clk 0:00:35.1]} 24. Nd6+ {[%clk 0:01:13.5]} 24... Kd7 {[%clk 0:00:35.3]}
25. Ne4 {[%clk 0:01:07.7]} 25... Nexg6 {[%clk 0:00:30.6]} 26. Qg7+ {[%clk
0:01:00.8]} 26... Kc6 {[%clk 0:00:20.5]} 27. Qc3+ {[%clk 0:00:59.6]} 27... Kd7
{[%clk 0:00:18.9]} 28. Rd1+ {[%clk 0:00:55.5]} 28... Ke8 {[%clk 0:00:17.6]} 29.
Qd3 {[%clk 0:00:45.3]} 29... Qe3+ {[%clk 0:00:16.5]} 30. Qxe3 {[%clk 0:00:44.6]}
30... Bxe3 {[%clk 0:00:17.4]} 31. Nd6+ {[%clk 0:00:45]} 31... Ke7 {[%clk
0:00:16.9]} 32. Nxc8+ {[%clk 0:00:44.9]} 32... Rxc8 {[%clk 0:00:17.8]} 33. c3
{[%clk 0:00:44.6]} 33... Bh6 {[%clk 0:00:17.5]} 34. g3 {[%clk 0:00:42.5]} 34...
Ne5 {[%clk 0:00:17.4]} 35. Ke2 {[%clk 0:00:41.1]} 35... Nfg6 {[%clk 0:00:17.5]}
36. Rhe1 {[%clk 0:00:39.5]} 36... Nc4 {[%clk 0:00:17.3]} 37. Rb1 {[%clk
0:00:33.4]} 37... e5 {[%clk 0:00:17.3]} 38. Kd3 {[%clk 0:00:31.5]} 38... Nd6
{[%clk 0:00:15.6]} 39. Rbd1 {[%clk 0:00:28]} 39... e4+ {[%clk 0:00:15.8]} 40.
Kc2 {[%clk 0:00:27]} 40... Ne5 {[%clk 0:00:16.1]} 41. Nd4 {[%clk 0:00:23.2]}
41... Kd7 {[%clk 0:00:13.1]} 42. Nf5 {[%clk 0:00:21.3]} 42... Bf8 {[%clk
0:00:12.7]} 43. Rxe4 {[%clk 0:00:19.5]} 43... Nc4 {[%clk 0:00:11.8]} 44. Nxd6
{[%clk 0:00:17.7]} 44... Nxd6 {[%clk 0:00:11.6]} 45. Red4 {[%clk 0:00:18.2]}
45... Rc6 {[%clk 0:00:10.9]} 46. g4 {[%clk 0:00:17.5]} 46... Kc7 {[%clk
0:00:11]} 47. h4 {[%clk 0:00:16.4]} 47... Rc5 {[%clk 0:00:09.8]} 48. Rd5 {[%clk
0:00:13.7]} 48... Rc6 {[%clk 0:00:08.4]} 49. g5 {[%clk 0:00:11.8]} 49... Kc8
{[%clk 0:00:02.3]} 50. h5 {[%clk 0:00:09.8]} 50... Nf7 {[%clk 0:00:02.6]} 51. g6
{[%clk 0:00:09.1]} 51... Nd6 {[%clk 0:00:02.4]} 52. g7 {[%clk 0:00:08.9]} 52...
Bxg7 {[%clk 0:00:01.2]} 53. Rxd6 {[%clk 0:00:08.8]} 53... Rc5 {[%clk 0:00:01.4]}
54. Rd8+ {[%clk 0:00:08.2]} 54... Kc7 {[%clk 0:00:01.2]} 55. R1d7+ {[%clk
0:00:09.1]} 55... Kc6 {[%clk 0:00:02.1]} 56. Rxg7 {[%clk 0:00:09.8]} 56... Rxh5
{[%clk 0:00:02.5]} 57. Rg6+ {[%clk 0:00:09.3]} 57... Kb5 {[%clk 0:00:03.4]} 58.
Rd5+ {[%clk 0:00:08.6]} 58... Kc4 {[%clk 0:00:02.5]} 59. Rxh5 {[%clk 0:00:08.2]}
59... b5 {[%clk 0:00:02]} 60. b3# {[%clk 0:00:09.1]} 1-0

[Event "*** Titled Tuesday Blitz"]
[Site "Chess.com"]
[Date "2020.05.12"]
[Round "9"]
[White "nonsopolo1"]
[Black "Bossche-CM"]
[Result "0-1"]
[WhiteElo "2210"]
[BlackElo "2441"]
[TimeControl "180+1"]
[EndTime "11:44:54 PDT"]
[Termination "Bossche-CM won on time"]

1. e4 {[%clk 0:03:00.7]} 1... c5 {[%clk 0:02:59.5]} 2. Nf3 {[%clk 0:02:59.9]}
2... e6 {[%clk 0:02:59.6]} 3. d3 {[%clk 0:02:57.2]} 3... d5 {[%clk 0:02:58]} 4.
Nbd2 {[%clk 0:02:56.9]} 4... Nc6 {[%clk 0:02:57.8]} 5. g3 {[%clk 0:02:56.8]}
5... Bd6 {[%clk 0:02:54.9]} 6. Bg2 {[%clk 0:02:56.5]} 6... Nf6 {[%clk
0:02:55.5]} 7. O-O {[%clk 0:02:55.8]} 7... O-O {[%clk 0:02:53.6]} 8. Re1 {[%clk
0:02:55]} 8... dxe4 {[%clk 0:02:53.7]} 9. dxe4 {[%clk 0:02:43.4]} 9... e5 {[%clk
0:02:52.3]} 10. c3 {[%clk 0:02:41.7]} 10... Be6 {[%clk 0:02:49.4]} 11. Qe2
{[%clk 0:02:40.3]} 11... Qd7 {[%clk 0:02:45.8]} 12. Ng5 {[%clk 0:02:38.8]} 12...
Rad8 {[%clk 0:02:40.1]} 13. Nxe6 {[%clk 0:02:37.3]} 13... Qxe6 {[%clk 0:02:41]}
14. Nc4 {[%clk 0:02:32.7]} 14... Bc7 {[%clk 0:02:37.4]} 15. Bg5 {[%clk
0:02:32.2]} 15... Rd7 {[%clk 0:02:36]} 16. Ne3 {[%clk 0:02:28.7]} 16... Ne7
{[%clk 0:02:29.8]} 17. b3 {[%clk 0:02:13.8]} 17... Rfd8 {[%clk 0:02:26.9]} 18.
Rad1 {[%clk 0:02:11.9]} 18... h6 {[%clk 0:02:26.7]} 19. Bxf6 {[%clk 0:02:11.2]}
19... Qxf6 {[%clk 0:02:27.6]} 20. Rxd7 {[%clk 0:02:00]} 20... Rxd7 {[%clk
0:02:27.1]} 21. Rd1 {[%clk 0:02:00]} 21... Rxd1+ {[%clk 0:02:19.5]} 22. Qxd1
{[%clk 0:02:00.9]} 22... Qd6 {[%clk 0:02:20]} 23. Qe2 {[%clk 0:01:55]} 23... a6
{[%clk 0:02:13.2]} 24. a4 {[%clk 0:01:49.4]} 24... Qe6 {[%clk 0:02:08.1]} 25.
Qc2 {[%clk 0:01:41.1]} 25... b5 {[%clk 0:02:04.1]} 26. axb5 {[%clk 0:01:23.7]}
26... axb5 {[%clk 0:02:05]} 27. Nd5 {[%clk 0:01:23.8]} 27... Nxd5 {[%clk
0:02:00.5]} 28. exd5 {[%clk 0:01:24.7]} 28... Qa6 {[%clk 0:01:55.9]} 29. Qd1
{[%clk 0:01:14.4]} 29... Bd6 {[%clk 0:01:54.3]} 30. Bf1 {[%clk 0:01:13.5]} 30...
Qa5 {[%clk 0:01:52.9]} 31. Qd3 {[%clk 0:01:11.5]} 31... b4 {[%clk 0:01:52.9]}
32. cxb4 {[%clk 0:01:05.5]} 32... cxb4 {[%clk 0:01:50.1]} 33. Qe4 {[%clk
0:00:46.1]} 33... Qa2 {[%clk 0:01:43.2]} 34. Bc4 {[%clk 0:00:44.3]} 34... Bc5
{[%clk 0:01:40.9]} 35. Qf3 {[%clk 0:00:38.7]} 35... e4 {[%clk 0:01:26.4]} 36.
Qf4 {[%clk 0:00:38.2]} 36... e3 {[%clk 0:01:19.3]} 37. fxe3 {[%clk 0:00:34.3]}
37... Qd2 {[%clk 0:01:19.8]} 38. Qf1 {[%clk 0:00:26.8]} 38... Bxe3+ {[%clk
0:01:10.4]} 39. Kh1 {[%clk 0:00:26.7]} 39... Qf2 {[%clk 0:00:33.3]} 40. Qxf2
{[%clk 0:00:16.1]} 40... Bxf2 {[%clk 0:00:34.2]} 41. Kg2 {[%clk 0:00:16.2]}
41... Bc5 {[%clk 0:00:33.8]} 42. h3 {[%clk 0:00:15.5]} 42... Kf8 {[%clk
0:00:34.1]} 43. Kf3 {[%clk 0:00:15.9]} 43... Ke7 {[%clk 0:00:34.6]} 44. Ke4
{[%clk 0:00:16.1]} 44... Kd6 {[%clk 0:00:34.4]} 45. g4 {[%clk 0:00:14.5]} 45...
Bf2 {[%clk 0:00:34.2]} 46. Kf5 {[%clk 0:00:13.6]} 46... Bh4 {[%clk 0:00:33.7]}
47. Ke4 {[%clk 0:00:13.5]} 47... g6 {[%clk 0:00:32.9]} 48. Bd3 {[%clk
0:00:12.8]} 48... Be7 {[%clk 0:00:30.9]} 49. Bc4 {[%clk 0:00:13]} 49... Bd8
{[%clk 0:00:31.4]} 50. Bd3 {[%clk 0:00:13]} 50... Bb6 {[%clk 0:00:31.9]} 51. Bc4
{[%clk 0:00:13.2]} 51... Bc7 {[%clk 0:00:32]} 52. Bd3 {[%clk 0:00:13.3]} 52...
Kc5 {[%clk 0:00:32.5]} 53. Bc4 {[%clk 0:00:13.2]} 53... Bd6 {[%clk 0:00:32.5]}
54. Bd3 {[%clk 0:00:12.3]} 54... Kb6 {[%clk 0:00:32]} 55. Bc4 {[%clk 0:00:12.4]}
55... Kc7 {[%clk 0:00:32.6]} 56. Bd3 {[%clk 0:00:11.8]} 56... Kd7 {[%clk
0:00:33.1]} 57. Bc4 {[%clk 0:00:12]} 57... Ke7 {[%clk 0:00:33.8]} 58. Bd3 {[%clk
0:00:12.2]} 58... Kf6 {[%clk 0:00:34.4]} 59. Bc4 {[%clk 0:00:12.2]} 59... Kg5
{[%clk 0:00:34.8]} 60. Kf3 {[%clk 0:00:12.3]} 60... f5 {[%clk 0:00:32.7]} 61.
gxf5 {[%clk 0:00:11.7]} 61... gxf5 {[%clk 0:00:31.6]} 62. Bd3 {[%clk 0:00:11.7]}
62... Kf6 {[%clk 0:00:31.8]} 63. Bc4 {[%clk 0:00:10.9]} 63... Ke5 {[%clk
0:00:32]} 64. Ke3 {[%clk 0:00:11]} 64... Bc5+ {[%clk 0:00:32.2]} 65. Kf3 {[%clk
0:00:11.2]} 65... Bb6 {[%clk 0:00:32.7]} 66. Ke2 {[%clk 0:00:08.6]} 66... Kf4
{[%clk 0:00:31.5]} 67. d6 {[%clk 0:00:08.5]} 67... Kg3 {[%clk 0:00:30.7]} 68.
Be6 {[%clk 0:00:05.1]} 68... f4 {[%clk 0:00:30.8]} 69. Bg4 {[%clk 0:00:05.3]}
69... Bc5 {[%clk 0:00:27.3]} 70. d7 {[%clk 0:00:03.1]} 70... Bb6 {[%clk
0:00:27.8]} 71. Kd3 {[%clk 0:00:02.3]} 71... f3 {[%clk 0:00:26.5]} 0-1

[Event "*** Titled Tuesday Blitz"]
[Site "Chess.com"]
[Date "2020.05.12"]
[Round "9"]
[White "Future2700"]
[Black "Nikolaj_6"]
[Result "0-1"]
[WhiteElo "2430"]
[BlackElo "2569"]
[TimeControl "180+1"]
[EndTime "11:44:55 PDT"]
[Termination "Nikolaj_6 won on time"]

1. e4 {[%clk 0:02:57.8]} 1... c5 {[%clk 0:02:58.5]} 2. Nf3 {[%clk 0:02:57.2]}
2... d6 {[%clk 0:02:58.8]} 3. d4 {[%clk 0:02:57.8]} 3... cxd4 {[%clk 0:02:59.2]}
4. Nxd4 {[%clk 0:02:58.7]} 4... Nf6 {[%clk 0:02:59.4]} 5. Nc3 {[%clk 0:02:59.3]}
5... a6 {[%clk 0:02:59.8]} 6. g3 {[%clk 0:02:59.9]} 6... e5 {[%clk 0:02:59.6]}
7. Nde2 {[%clk 0:03:00.3]} 7... Be7 {[%clk 0:02:57.6]} 8. Bg2 {[%clk 0:03:00.7]}
8... O-O {[%clk 0:02:56.8]} 9. a4 {[%clk 0:02:59.7]} 9... Be6 {[%clk 0:02:48.7]}
10. O-O {[%clk 0:03:00]} 10... Nbd7 {[%clk 0:02:48]} 11. h3 {[%clk 0:03:00.4]}
11... b5 {[%clk 0:02:26.4]} 12. axb5 {[%clk 0:02:58.8]} 12... axb5 {[%clk
0:02:27.3]} 13. Rxa8 {[%clk 0:02:58.7]} 13... Qxa8 {[%clk 0:02:27.3]} 14. Nxb5
{[%clk 0:02:53.1]} 14... Rc8 {[%clk 0:02:16.3]} 15. Nbc3 {[%clk 0:02:50.2]}
15... Nc5 {[%clk 0:02:13.7]} 16. Nd5 {[%clk 0:02:46.3]} 16... Bxd5 {[%clk
0:02:12.9]} 17. exd5 {[%clk 0:02:47.2]} 17... Bd8 {[%clk 0:02:06.8]} 18. c4
{[%clk 0:02:23.6]} 18... Qb7 {[%clk 0:02:02]} 19. Nc3 {[%clk 0:02:03.9]} 19...
Qb4 {[%clk 0:01:51.2]} 20. Nb5 {[%clk 0:02:03.9]} 20... Ne8 {[%clk 0:01:46.9]}
21. Qe2 {[%clk 0:01:59.6]} 21... Nb3 {[%clk 0:01:44.8]} 22. Na7 {[%clk
0:01:44.2]} 22... Qxc4 {[%clk 0:01:31.7]} 23. Qxc4 {[%clk 0:01:21.3]} 23... Rxc4
{[%clk 0:01:31.2]} 24. Be3 {[%clk 0:01:22]} 24... h6 {[%clk 0:01:19.4]} 25. Nc6
{[%clk 0:01:21.8]} 25... Bg5 {[%clk 0:01:19]} 26. Bxg5 {[%clk 0:00:59.7]} 26...
hxg5 {[%clk 0:01:18.8]} 27. Rd1 {[%clk 0:00:57.1]} 27... Rc2 {[%clk 0:01:10.3]}
28. Rb1 {[%clk 0:00:33.4]} 28... Nd2 {[%clk 0:01:09.6]} 29. Ra1 {[%clk
0:00:33.3]} 29... Nf6 {[%clk 0:01:05.7]} 30. b4 {[%clk 0:00:30.7]} 30... Rb2
{[%clk 0:01:02.8]} 31. Ra8+ {[%clk 0:00:28.1]} 31... Kh7 {[%clk 0:01:02.5]} 32.
Ra7 {[%clk 0:00:25.5]} 32... e4 {[%clk 0:00:57.4]} 33. Rxf7 {[%clk 0:00:21.2]}
33... Nxd5 {[%clk 0:00:57.3]} 34. Rd7 {[%clk 0:00:15.3]} 34... Nxb4 {[%clk
0:00:51.5]} 35. Nxb4 {[%clk 0:00:16.2]} 35... Rxb4 {[%clk 0:00:51.1]} 36. Rxd6
{[%clk 0:00:16.9]} 36... Rb1+ {[%clk 0:00:47.6]} 37. Kh2 {[%clk 0:00:17]} 37...
Re1 {[%clk 0:00:47.5]} 38. Rxd2 {[%clk 0:00:16.5]} 38... e3 {[%clk 0:00:46.7]}
39. fxe3 {[%clk 0:00:16.1]} 39... Rxe3 {[%clk 0:00:46.5]} 40. Rd4 {[%clk
0:00:15.9]} 40... Kh6 {[%clk 0:00:46.2]} 41. Rd6+ {[%clk 0:00:15.3]} 41... g6
{[%clk 0:00:46.6]} 42. Rd7 {[%clk 0:00:15]} 42... g4 {[%clk 0:00:47]} 43. h4
{[%clk 0:00:14.9]} 43... g5 {[%clk 0:00:45.8]} 44. Rd6+ {[%clk 0:00:14.5]} 44...
Kh5 {[%clk 0:00:46.1]} 45. hxg5 {[%clk 0:00:14.3]} 45... Kxg5 {[%clk 0:00:45.5]}
46. Rd5+ {[%clk 0:00:14.9]} 46... Kf6 {[%clk 0:00:45.4]} 47. Rd4 {[%clk
0:00:15]} 47... Kg5 {[%clk 0:00:45.4]} 48. Rd5+ {[%clk 0:00:13.8]} 48... Kf6
{[%clk 0:00:45.6]} 49. Ra5 {[%clk 0:00:14.7]} 49... Rc3 {[%clk 0:00:45.2]} 50.
Kg1 {[%clk 0:00:14.9]} 50... Rxg3 {[%clk 0:00:45.1]} 51. Kf2 {[%clk 0:00:15.2]}
51... Rd3 {[%clk 0:00:44.7]} 52. Ra4 {[%clk 0:00:15.5]} 52... g3+ {[%clk
0:00:44.4]} 53. Ke2 {[%clk 0:00:15.2]} 53... Rc3 {[%clk 0:00:44.5]} 54. Rg4
{[%clk 0:00:14.5]} 54... Kf5 {[%clk 0:00:43.5]} 55. Rg8 {[%clk 0:00:14.7]} 55...
Kf4 {[%clk 0:00:42.9]} 56. Rf8+ {[%clk 0:00:13]} 56... Kg4 {[%clk 0:00:43.1]}
57. Bf3+ {[%clk 0:00:11.9]} 57... Kg5 {[%clk 0:00:43.2]} 58. Rg8+ {[%clk
0:00:11.6]} 58... Kf4 {[%clk 0:00:42.4]} 59. Rg4+ {[%clk 0:00:11.9]} 59... Kf5
{[%clk 0:00:42.6]} 60. Rxg3 {[%clk 0:00:12.6]} 60... Rc7 {[%clk 0:00:39]} 61.
Rg8 {[%clk 0:00:08.5]} 61... Re7+ {[%clk 0:00:37.4]} 62. Kf2 {[%clk 0:00:08.7]}
62... Rc7 {[%clk 0:00:38]} 63. Ra8 {[%clk 0:00:09.2]} 63... Kf4 {[%clk 0:00:37]}
64. Ra4+ {[%clk 0:00:09]} 64... Kf5 {[%clk 0:00:37]} 65. Kg3 {[%clk 0:00:09.2]}
65... Rg7+ {[%clk 0:00:36.3]} 66. Bg4+ {[%clk 0:00:09.7]} 66... Ke5 {[%clk
0:00:36.7]} 67. Kf3 {[%clk 0:00:10.2]} 67... Rf7+ {[%clk 0:00:36.2]} 68. Ke3
{[%clk 0:00:10.8]} 68... Rg7 {[%clk 0:00:33.3]} 69. Ra5+ {[%clk 0:00:10.6]}
69... Kd6 {[%clk 0:00:33.5]} 70. Kf4 {[%clk 0:00:10.9]} 70... Rb7 {[%clk
0:00:31.7]} 71. Bf5 {[%clk 0:00:10.7]} 71... Rb4+ {[%clk 0:00:29.4]} 72. Be4
{[%clk 0:00:11.1]} 72... Rb2 {[%clk 0:00:28.8]} 73. Rd5+ {[%clk 0:00:11.3]}
73... Ke6 {[%clk 0:00:28.5]} 74. Rc5 {[%clk 0:00:10.6]} 74... Rf2+ {[%clk
0:00:28.3]} 75. Bf3 {[%clk 0:00:10.7]} 75... Kd6 {[%clk 0:00:27.6]} 76. Rc6+
{[%clk 0:00:10.7]} 76... Kd7 {[%clk 0:00:27.4]} 77. Rh6 {[%clk 0:00:10.7]} 77...
Ke7 {[%clk 0:00:27]} 78. Ke4 {[%clk 0:00:10.3]} 78... Ra2 {[%clk 0:00:26.3]} 79.
Ke5 {[%clk 0:00:07.7]} 79... Kf7 {[%clk 0:00:22.8]} 80. Be4 {[%clk 0:00:07.1]}
80... Ra5+ {[%clk 0:00:20.7]} 81. Bd5+ {[%clk 0:00:07.4]} 81... Kg7 {[%clk
0:00:20.7]} 82. Rh1 {[%clk 0:00:05.6]} 82... Rb5 {[%clk 0:00:20]} 83. Rg1+
{[%clk 0:00:02.9]} 83... Kh6 {[%clk 0:00:20.3]} 0-1

[Event "*** Titled Tuesday Blitz"]
[Site "Chess.com"]
[Date "2020.05.12"]
[Round "9"]
[White "chito89"]
[Black "joppie2"]
[Result "1-0"]
[WhiteElo "2765"]
[BlackElo "2868"]
[TimeControl "180+1"]
[EndTime "11:45:02 PDT"]
[Termination "chito89 won on time"]

1. e4 {[%clk 0:02:44.5]} 1... c5 {[%clk 0:02:05.1]} 2. Nc3 {[%clk 0:02:41.6]}
2... d6 {[%clk 0:02:05.1]} 3. f4 {[%clk 0:02:41]} 3... g6 {[%clk 0:02:03.3]} 4.
Nf3 {[%clk 0:02:41]} 4... Bg7 {[%clk 0:02:03.8]} 5. Bb5+ {[%clk 0:02:34.2]} 5...
Bd7 {[%clk 0:02:03.1]} 6. Bxd7+ {[%clk 0:02:34.6]} 6... Nxd7 {[%clk 0:02:01.8]}
7. O-O {[%clk 0:02:35]} 7... Ngf6 {[%clk 0:01:52.2]} 8. Qe1 {[%clk 0:02:35.4]}
8... Rb8 {[%clk 0:01:50.7]} 9. e5 {[%clk 0:02:32.6]} 9... dxe5 {[%clk
0:01:35.5]} 10. fxe5 {[%clk 0:02:33]} 10... Nh5 {[%clk 0:01:34.5]} 11. e6 {[%clk
0:02:24.2]} 11... fxe6 {[%clk 0:01:33.8]} 12. Ng5 {[%clk 0:02:18.1]} 12... Nf8
{[%clk 0:01:10.5]} 13. d3 {[%clk 0:02:09.9]} 13... Qd7 {[%clk 0:01:03.4]} 14.
Nf7 {[%clk 0:01:35.1]} 14... Rg8 {[%clk 0:01:02.7]} 15. Kh1 {[%clk 0:01:31]}
15... e5 {[%clk 0:00:43.5]} 16. Nxe5 {[%clk 0:01:12.7]} 16... Qe6 {[%clk
0:00:43.4]} 17. Nc4 {[%clk 0:01:12.9]} 17... Qxe1 {[%clk 0:00:43.2]} 18. Rxe1
{[%clk 0:01:13.4]} 18... Bxc3 {[%clk 0:00:40.7]} 19. bxc3 {[%clk 0:01:12.4]}
19... Kd7 {[%clk 0:00:32.5]} 20. Rb1 {[%clk 0:01:09]} 20... b6 {[%clk
0:00:32.1]} 21. a4 {[%clk 0:01:03.8]} 21... Ne6 {[%clk 0:00:28.6]} 22. Ne5+
{[%clk 0:01:00.4]} 22... Kc7 {[%clk 0:00:28.7]} 23. Bh6 {[%clk 0:00:49.6]} 23...
Nd8 {[%clk 0:00:26.7]} 24. Nc4 {[%clk 0:00:43.1]} 24... Kd7 {[%clk 0:00:21.5]}
25. Ne5+ {[%clk 0:00:39.1]} 25... Kc7 {[%clk 0:00:21.6]} 26. Re2 {[%clk
0:00:30]} 26... Re8 {[%clk 0:00:18.7]} 27. Rbe1 {[%clk 0:00:27.7]} 27... Rb7
{[%clk 0:00:19.2]} 28. g4 {[%clk 0:00:20.7]} 28... Nf6 {[%clk 0:00:19.4]} 29. c4
{[%clk 0:00:20]} 29... Nc6 {[%clk 0:00:17.8]} 30. Bf4 {[%clk 0:00:19]} 30... Nd4
{[%clk 0:00:14.9]} 31. Nf3+ {[%clk 0:00:09.2]} 31... Kd8 {[%clk 0:00:09.7]} 32.
Nxd4 {[%clk 0:00:09.4]} 32... cxd4 {[%clk 0:00:10.6]} 33. h3 {[%clk 0:00:09.8]}
33... Nd7 {[%clk 0:00:09.9]} 34. Be5 {[%clk 0:00:07.3]} 34... Nxe5 {[%clk
0:00:07.5]} 35. Rxe5 {[%clk 0:00:08]} 35... Rd7 {[%clk 0:00:08.4]} 36. a5 {[%clk
0:00:08]} 36... Kc7 {[%clk 0:00:08.7]} 37. Kg2 {[%clk 0:00:06.2]} 37... bxa5
{[%clk 0:00:06.6]} 38. Rxa5 {[%clk 0:00:05.6]} 38... Kb6 {[%clk 0:00:07.2]} 39.
Rea1 {[%clk 0:00:06.1]} 39... Ra8 {[%clk 0:00:04.8]} 40. Rb5+ {[%clk 0:00:05.8]}
40... Kc7 {[%clk 0:00:03.7]} 41. Ra6 {[%clk 0:00:06.2]} 41... Kd8 {[%clk
0:00:04.2]} 42. Kf3 {[%clk 0:00:05.8]} 42... Ke8 {[%clk 0:00:04.5]} 43. Ke4
{[%clk 0:00:06.2]} 43... Kf7 {[%clk 0:00:05]} 44. Rd5 {[%clk 0:00:06.3]} 44...
Rb7 {[%clk 0:00:05.4]} 45. Rxd4 {[%clk 0:00:05.7]} 45... Rb2 {[%clk 0:00:05.8]}
46. Rd7 {[%clk 0:00:05.3]} 46... Rxc2 {[%clk 0:00:05.5]} 47. Raxa7 {[%clk
0:00:05.1]} 47... Re8 {[%clk 0:00:05.3]} 48. Kd4 {[%clk 0:00:01.8]} 48... Rh2
{[%clk 0:00:05.7]} 49. c5 {[%clk 0:00:02.4]} 49... Rxh3 {[%clk 0:00:05.9]} 50.
c6 {[%clk 0:00:03.1]} 50... Rh4 {[%clk 0:00:04.2]} 51. c7 {[%clk 0:00:03.6]}
51... Rxg4+ {[%clk 0:00:05.1]} 52. Kd5 {[%clk 0:00:04]} 52... Rg1 {[%clk
0:00:06]} 53. Rd8 {[%clk 0:00:04.3]} 53... Rc1 {[%clk 0:00:05.5]} 54. Raa8
{[%clk 0:00:03.2]} 54... e6+ {[%clk 0:00:05.9]} 55. Kd6 {[%clk 0:00:03.1]} 55...
Re7 {[%clk 0:00:03.2]} 56. Rf8+ {[%clk 0:00:03.2]} 56... Kg7 {[%clk 0:00:03.4]}
57. Rg8+ {[%clk 0:00:02.9]} 57... Kf6 {[%clk 0:00:03]} 58. c8=N {[%clk
0:00:03.3]} 58... Rec7 {[%clk 0:00:02.2]} 59. Rf8+ {[%clk 0:00:03.7]} 59... Kg7
{[%clk 0:00:01.9]} 60. Ne7 {[%clk 0:00:04.6]} 60... R7c3 {[%clk 0:00:01.5]} 61.
Rg8+ {[%clk 0:00:05]} 61... Kh6 {[%clk 0:00:02.2]} 62. d4 {[%clk 0:00:05.9]}
62... Rd3 {[%clk 0:00:02.8]} 63. Ra4 {[%clk 0:00:04.6]} 63... Rcd1 {[%clk
0:00:02.6]} 64. Ke5 {[%clk 0:00:04.7]} 64... Re3+ {[%clk 0:00:02.6]} 65. Kd6
{[%clk 0:00:05.3]} 65... Re4 {[%clk 0:00:02.4]} 66. Nc6 {[%clk 0:00:05.9]} 66...
Kg5 {[%clk 0:00:02.4]} 67. Re8 {[%clk 0:00:05.3]} 67... Kh6 {[%clk 0:00:02.7]}
68. Rxe6 {[%clk 0:00:05.3]} 68... Rf4 {[%clk 0:00:03.1]} 69. Rb4 {[%clk
0:00:04.1]} 69... Kg5 {[%clk 0:00:02.9]} 70. d5 {[%clk 0:00:04.6]} 70... Rf2
{[%clk 0:00:01]} 71. Re5+ {[%clk 0:00:03.8]} 1-0